bitfinex/quotes_BTCUSD_20250902
["timestamp","ask_amount","ask_price","bid_price","bid_amount"]
[1756813976111,1.86100963,110000.0,109990.0,0.0014]
[1756813976523,1.86092963,110000.0,109990.0,0.00344]
[1756813976765,1.85784963,110000.0,109990.0,0.00344]
[1756813977686,1.85586963,110000.0,109990.0,0.00344]
[1756813978943,1.35586963,110000.0,109990.0,0.00344]
[1756813979182,1.26395364,110000.0,109990.0,0.00344]
[1756813979385,1.24963875,110000.0,109990.0,0.00648]
[1756813980044,0.97604312,110000.0,109990.0,0.00648]
[1756813980490,0.90612312,110000.0,109990.0,0.00648]
[1756813980711,0.16172,110000.0,109990.0,0.18831471]
[1756813980928,0.70138734,110000.0,109990.0,0.18831471]
[1756813981174,0.70138734,110000.0,109990.0,0.22537091]
[1756813981611,0.69638734,110000.0,109990.0,0.22437091]
[1756813981829,0.18381818,110000.0,109990.0,0.22437091]
[1756813982044,0.54266734,110000.0,109990.0,0.22437091]
[1756813982704,0.69538734,110000.0,109990.0,0.22437091]
[1756813982970,0.54166734,110000.0,109990.0,0.22437091]
[1756813983391,0.54166734,110000.0,109990.0,0.22433091]
[1756813984490,0.002,110000.0,109990.0,0.22433091]
[1756813984703,0.002,110000.0,109990.0,0.33718572]
[1756813985703,0.002,110000.0,109990.0,0.49182572]
[1756813987528,0.002,110000.0,109990.0,0.51915533]
[1756813988996,0.001,110000.0,109990.0,0.87700449]
[1756813989198,0.002,110000.0,109990.0,0.92481671]
[1756813989401,0.001,110000.0,109990.0,0.92481671]
[1756813989604,0.001,110000.0,109990.0,1.26481671]
[1756813989826,0.001,110000.0,109990.0,1.26581671]
[1756813989827,0.003,110000.0,109990.0,1.26581671]
[1756813990032,0.00047081,110010.0,110000.0,0.542757]
[1756813990239,0.00047081,110010.0,110000.0,1.17525814]
[1756813990660,0.00047081,110010.0,110000.0,1.17723814]
[1756813991293,1e-08,110010.0,110000.0,1.61240972]
[1756813991714,0.00100001,110010.0,110000.0,0.8987114]
[1756813991916,1e-08,110010.0,110000.0,1.76684972]
[1756813992124,0.00100001,110010.0,110000.0,1.80946812]
[1756813992361,0.00300001,110010.0,110000.0,1.81346812]
[1756813992536,0.00300001,110010.0,110000.0,1.3433298]
[1756813992737,0.00200001,110010.0,110000.0,2.05702812]
[1756813992952,1e-08,110010.0,110000.0,2.21642812]
[1756813993150,0.00100001,110010.0,110000.0,2.06202812]
[1756813993361,0.00100001,110010.0,110000.0,1.85861896]
[1756813993556,0.00100001,110010.0,110000.0,1.70417896]
[1756813993778,0.00100001,110010.0,110000.0,0.74702258]
[1756813993987,0.00100001,110010.0,110000.0,0.56150258]
[1756813994198,0.3239227,110020.0,110010.0,0.18180165]
[1756813994403,0.54457678,110020.0,110010.0,0.4660701]
[1756813995256,0.36278916,110020.0,110010.0,0.4660701]
[1756813995462,0.00594,110020.0,110010.0,0.4700701]
[1756813995654,0.18872512,110020.0,110010.0,0.4760701]
[1756813996934,0.18872512,110020.0,110010.0,0.4759501]
[1756813997724,0.18872512,110020.0,110010.0,0.29414845]
[1756813998121,0.18872512,110020.0,110010.0,0.29410845]
[1756813999092,0.18872512,110020.0,110010.0,0.13978845]
[1756813999293,0.18872512,110020.0,110010.0,0.29406845]
[1756813999477,0.19795696,110020.0,110010.0,0.29406845]
[1756813999751,0.18872512,110020.0,110010.0,0.4758701]
[1756813999955,0.18872512,110020.0,110010.0,0.29406845]
[1756814000210,0.18872512,110020.0,110010.0,0.4778501]
[1756814000491,0.002,110020.0,110010.0,0.49878892]
[1756814003977,0.18378512,110020.0,110010.0,0.49878892]
[1756814004702,0.002,110020.0,110010.0,0.49878892]
[1756814005670,0.002,110020.0,110010.0,0.50185892]
[1756814008403,0.002,110020.0,110010.0,0.34450892]
[1756814008615,0.18872512,110020.0,110010.0,0.49850892]
[1756814009077,0.18872512,110020.0,110010.0,0.29374845]
[1756814010093,0.76107131,110020.0,110010.0,0.01004712]
[1756814010291,0.76107131,110020.0,110010.0,0.16400712]
[1756814011110,0.18872512,110020.0,110010.0,0.16400712]
[1756814012341,0.18872512,110020.0,110010.0,0.01004712]
[1756814012342,1.12928354,110020.0,110010.0,0.01004712]
[1756814012576,1.30454904,110020.0,110010.0,0.01004712]
[1756814012786,1.27633681,110020.0,110010.0,0.01004712]
[1756814013220,1.28267735,110020.0,110010.0,0.01004712]
[1756814013450,1.29958523,110020.0,110010.0,0.01004712]
[1756814013673,1.29858523,110020.0,110010.0,0.00404712]
[1756814013914,1.30058523,110020.0,110010.0,0.00104712]
[1756814014352,1.34324406,110020.0,110010.0,0.00104712]
[1756814014779,1.34224406,110020.0,110010.0,0.00104712]
[1756814015203,1.34324406,110020.0,110010.0,0.00104712]
[1756814016471,1.49768406,110020.0,110010.0,0.00104712]
[1756814017361,1.64211605,110020.0,110010.0,0.00104712]
[1756814017570,1.67463879,110020.0,110010.0,0.00104712]
[1756814017792,1.66455895,110020.0,110010.0,0.00104712]
[1756814018222,1.68888746,110020.0,110010.0,0.00104712]
[1756814019047,1.66455895,110020.0,110010.0,0.00104712]
[1756814019341,1.68888129,110020.0,110010.0,0.00104712]
[1756814019555,1.68887702,110020.0,110010.0,0.00104712]
[1756814020633,1.67464439,110020.0,110010.0,0.00104712]
[1756814021522,1.65032205,110020.0,110010.0,0.00104712]
[1756814022643,1.65048205,110020.0,110010.0,0.00104712]
[1756814023298,1.49588205,110020.0,110010.0,0.00104712]
[1756814023507,1.65048205,110020.0,110010.0,0.00104712]
[1756814023926,1.66471531,110020.0,110010.0,0.00104712]
[1756814024353,1.09236912,110020.0,110010.0,0.00104712]
[1756814024563,1.09416437,110000.0,109990.0,0.00036]
[1756814024766,1.56954155,110000.0,109990.0,0.00036]
[1756814024980,1.57473155,110000.0,109990.0,0.00036]
[1756814025183,1.55041647,110000.0,109990.0,0.00036]
[1756814025398,0.73155429,110000.0,109990.0,0.00036]
[1756814025636,1.44159886,110000.0,109990.0,0.00036]
[1756814025840,1.43626503,110000.0,109990.0,0.00236]
[1756814026477,1.45947211,110000.0,109990.0,0.00236]
[1756814026682,1.46423303,110000.0,109990.0,0.00236]
[1756814026892,0.83020283,110000.0,109990.0,0.00436]
[1756814027100,1.46447303,110000.0,109990.0,0.00036]
[1756814027578,1.46647303,110000.0,109990.0,0.00436]
[1756814028328,1.46014095,110000.0,109990.0,0.00436]
[1756814028572,1.46646818,110000.0,109990.0,0.00436]
[1756814028780,1.55838417,110000.0,109990.0,0.00436]
[1756814030838,1.54150917,110000.0,109990.0,0.00436]
[1756814031050,1.53518194,110000.0,109990.0,0.00436]
[1756814031266,1.54150822,110000.0,109990.0,0.00436]
[1756814031486,1.55837829,110000.0,109990.0,0.00436]
[1756814031680,1.4664623,110000.0,109990.0,0.00436]
[1756814031813,1.44342595,110000.0,109990.0,0.00436]
[1756814032271,1.46662292,110000.0,109990.0,0.00436]
[1756814033225,1.31062292,110000.0,109990.0,0.00436]
[1756814033459,1.46662292,110000.0,109990.0,0.00436]
[1756814033693,1.44975223,110000.0,109990.0,0.00436]
[1756814033915,1.46662399,110000.0,109990.0,0.00436]
[1756814034132,1.55853998,110000.0,109990.0,0.00436]
[1756814035715,1.61509536,110000.0,109990.0,0.00436]
[1756814036259,1.6536445,110000.0,109990.0,0.00436]
[1756814037261,1.68606461,110000.0,109990.0,0.00436]
[1756814037453,0.23839009,109990.0,109980.0,0.0004]
[1756814037662,1.01409647,109990.0,109980.0,0.0004]
[1756814037881,1.01928647,109990.0,109980.0,0.0004]
[1756814038342,1.04360155,109990.0,109980.0,0.0004]
[1756814038558,1.13551754,109990.0,109980.0,0.0004]
[1756814038769,1.13651754,109990.0,109980.0,0.0044]
[1756814038969,1.10819585,109990.0,109980.0,0.0044]
[1756814039164,1.07998362,109990.0,109980.0,0.0044]
[1756814040340,1.07998362,109990.0,109980.0,0.0054]
[1756814040341,1.23830362,109990.0,109980.0,0.0054]
[1756814040844,1.23830362,109990.0,109980.0,0.0004]
[1756814040845,1.23630362,109990.0,109980.0,0.0004]
[1756814041420,1.27472373,109990.0,109980.0,0.0004]
[1756814041651,1.23707362,109990.0,109980.0,0.00237]
[1756814041903,1.24226362,109990.0,109980.0,0.0004]
[1756814042153,0.5262644,109990.0,109980.0,0.0004]
[1756814042361,1.28257046,109990.0,109980.0,0.0004]
[1756814043181,1.26553601,109990.0,109980.0,0.0004]
[1756814043848,1.29795612,109990.0,109980.0,0.0004]
[1756814044097,1.99595573,109990.0,109980.0,0.0004]
[1756814044345,1.61364104,109990.0,109980.0,0.0004]
[1756814044547,2.02042476,109990.0,109980.0,0.0004]
[1756814044751,2.11598684,109990.0,109980.0,0.0004]
[1756814046303,2.08356673,109990.0,109980.0,0.0004]
[1756814047367,2.07992064,109990.0,109980.0,0.0004]
[1756814048442,2.07997628,109990.0,109980.0,0.0004]
[1756814049245,2.08362237,109990.0,109980.0,0.0004]
[1756814049455,2.1118346,109990.0,109980.0,1e-08]
[1756814049664,2.03482646,109990.0,109980.0,1e-08]
[1756814049865,2.19202646,109990.0,109980.0,1e-08]
[1756814050479,2.15442646,109990.0,109980.0,1e-08]
[1756814050900,2.09131364,109990.0,109980.0,1e-08]
[1756814051106,2.08731364,109990.0,109980.0,1e-08]
[1756814051385,2.08931364,109990.0,109980.0,0.00100001]
[1756814051828,2.08531364,109990.0,109980.0,1e-08]
[1756814052036,2.08930894,109990.0,109980.0,0.00100001]
[1756814052247,0.68185123,109980.0,109970.0,0.00165092]
[1756814052477,2.54245412,109980.0,109970.0,0.00165092]
[1756814052689,2.51520087,109980.0,109970.0,0.00165092]
[1756814053106,2.5476957,109980.0,109970.0,0.00165092]
[1756814053550,2.51532915,109980.0,109970.0,0.00165092]
[1756814054204,2.51632915,109980.0,109970.0,0.00165092]
[1756814054843,2.5305666,109980.0,109970.0,0.00165092]
[1756814055307,2.5335666,109980.0,109970.0,0.00265092]
[1756814056374,1.59588315,109960.0,109950.0,0.0004]
[1756814056570,1.98190792,109960.0,109950.0,0.0004]
[1756814056798,1.98396792,109960.0,109950.0,0.00253]
[1756814057226,2.02533824,109960.0,109950.0,0.00253]
[1756814057682,2.02951824,109960.0,109950.0,0.00253]
[1756814057906,2.02951824,109960.0,109950.0,0.00353]
[1756814058119,2.03051824,109960.0,109950.0,0.00353]
[1756814058560,2.5305092,109960.0,109950.0,0.00353]
[1756814059007,2.61607871,109960.0,109950.0,0.00353]
[1756814059226,2.6224218,109960.0,109950.0,0.0014]
[1756814060472,1.47945013,109960.0,109950.0,0.00664]
[1756814060698,2.14274253,109960.0,109950.0,0.00353]
[1756814060912,2.52510581,109960.0,109950.0,0.00353]
[1756814061131,2.1671062,109960.0,109950.0,0.00353]
[1756814062010,2.1691662,109960.0,109950.0,0.00353]
[1756814062230,2.52510581,109960.0,109950.0,0.00353]
[1756814062896,2.02510581,109960.0,109950.0,0.00353]
[1756814063111,2.05855804,109960.0,109950.0,0.00353]
[1756814063351,2.08690119,109960.0,109950.0,0.0014]
[1756814063560,2.17881718,109960.0,109950.0,0.0014]
[1756814063769,2.08690119,109960.0,109950.0,0.0014]
[1756814063977,1.01290236,109960.0,109950.0,0.0014]
[1756814064222,1.73805624,109960.0,109950.0,0.0014]
[1756814064437,1.73805624,109960.0,109950.0,0.00353]
[1756814065367,1.73805624,109960.0,109950.0,0.0014]
[1756814065984,1.73805624,109960.0,109950.0,0.00353]
[1756814066196,1.73805624,109960.0,109950.0,0.0014]
[1756814066617,1.02205702,109960.0,109950.0,0.0014]
[1756814066796,1.73805624,109960.0,109950.0,0.0014]
[1756814067030,2.09605585,109960.0,109950.0,0.0014]
[1756814067254,1.11397301,109960.0,109950.0,0.0014]
[1756814067467,2.18797184,109960.0,109950.0,0.0014]
[1756814067675,2.09605585,109960.0,109950.0,0.0014]
[1756814069683,2.08971999,109960.0,109950.0,0.0014]
[1756814069892,2.09606579,109960.0,109950.0,0.0014]
[1756814073433,2.09606778,109960.0,109950.0,0.0014]
[1756814073636,2.18798377,109960.0,109950.0,0.0014]
[1756814073816,2.03110377,109960.0,109950.0,0.0014]
[1756814074025,2.18842377,109960.0,109950.0,0.0014]
[1756814074616,1.11442494,109960.0,109950.0,0.0014]
[1756814074969,1.67671279,109960.0,109950.0,0.00353]
[1756814075169,1.65238912,109960.0,109950.0,0.00353]
[1756814075329,1.67675279,109960.0,109950.0,0.00353]
[1756814076133,0.9363899,109960.0,109950.0,0.00353]
[1756814076339,1.67675279,109960.0,109950.0,0.00353]
[1756814076545,1.33315313,109960.0,109950.0,0.00664]
[1756814076747,1.30988319,109960.0,109950.0,0.00664]
[1756814076969,0.002,109960.0,109950.0,0.66166904]
[1756814077170,0.002,109960.0,109950.0,0.31038685]
[1756814077784,0.002,109960.0,109950.0,0.66838646]
[1756814078190,0.01115494,109960.0,109950.0,0.36573284]
[1756814078401,0.55103887,109960.0,109940.0,0.18191702]
[1756814078622,0.53990047,109950.0,109940.0,0.09191599]
[1756814078836,0.53990047,109950.0,109940.0,0.27383339]
[1756814079461,0.18190086,109950.0,109940.0,0.27383339]
[1756814079666,0.53990047,109950.0,109940.0,0.36311567]
[1756814079905,0.18190086,109950.0,109940.0,0.36311567]
[1756814080109,0.71069887,109960.0,109940.0,0.36311567]
[1756814080310,0.71169887,109960.0,109940.0,0.36311567]
[1756814080513,0.18190086,109950.0,109940.0,0.36311567]
[1756814081279,0.18290086,109950.0,109940.0,0.36411567]
[1756814081704,0.18290086,109950.0,109940.0,0.18219827]
[1756814081911,0.54392047,109950.0,109940.0,0.001]
[1756814082120,0.54591047,109950.0,109940.0,0.001]
[1756814082543,0.54392047,109950.0,109940.0,0.001]
[1756814082944,0.54592047,109950.0,109940.0,0.001]
[1756814083163,0.53990047,109950.0,109940.0,0.00287]
[1756814083364,0.53990047,109950.0,109940.0,0.00187]
[1756814083736,0.54190047,109950.0,109940.0,0.00187]
[1756814083941,0.18192927,109940.0,109920.0,0.37079678]
[1756814084148,0.53992888,109940.0,109930.0,0.00187]
[1756814084346,0.69712888,109940.0,109930.0,0.00187]
[1756814084972,0.33912927,109940.0,109930.0,0.00187]
[1756814085177,0.69726988,109940.0,109930.0,0.00187]
[1756814085385,0.33927027,109940.0,109930.0,0.00187]
[1756814085588,0.69726988,109940.0,109930.0,0.00187]
[1756814086251,0.69925988,109940.0,109930.0,0.00187]
[1756814086468,0.70227988,109940.0,109930.0,0.00187]
[1756814086682,0.70527988,109940.0,109930.0,0.00687]
[1756814088415,0.70527988,109940.0,109930.0,0.005]
[1756814088620,0.70527988,109940.0,109930.0,0.00492]
[1756814089499,0.70527988,109940.0,109930.0,0.00679]
[1756814090150,0.70527988,109940.0,109930.0,0.00492]
[1756814090349,1.49519548,109940.0,109930.0,0.00492]
[1756814090555,1.33799548,109940.0,109930.0,0.00492]
[1756814090764,1.04559988,109940.0,109930.0,0.00679]
[1756814090973,1.04559988,109940.0,109930.0,0.00492]
[1756814091180,1.40359949,109940.0,109930.0,0.00492]
[1756814091394,1.49551548,109940.0,109930.0,0.00492]
[1756814093845,1.33799548,109940.0,109930.0,0.00492]
[1756814094061,1.40347949,109940.0,109930.0,0.00492]
[1756814096144,0.68748027,109940.0,109930.0,0.00492]
[1756814096355,1.40347949,109940.0,109930.0,0.00492]
[1756814096983,1.40339949,109940.0,109930.0,0.00679]
[1756814097219,0.52507027,109940.0,109930.0,0.00679]
[1756814097443,1.04030988,109940.0,109930.0,0.00679]
[1756814097651,1.39830949,109940.0,109930.0,0.00679]
[1756814098075,0.88306988,109940.0,109930.0,0.00679]
[1756814098279,1.04030988,109940.0,109930.0,0.00679]
[1756814098637,1.04531988,109940.0,109930.0,0.00679]
[1756814099282,0.54306988,109940.0,109930.0,0.18872395]
[1756814099437,0.003141,109940.0,109930.0,0.22583139]
[1756814099638,0.1850584,109940.0,109930.0,0.22583139]
[1756814100259,0.003141,109940.0,109930.0,0.22583139]
[1756814100460,0.003141,109940.0,109930.0,0.22700139]
[1756814100683,0.003141,109940.0,109930.0,0.31891738]
[1756814101757,0.003141,109940.0,109930.0,0.3398562]
[1756814102683,0.003141,109940.0,109930.0,0.1398562]
[1756814102901,0.003141,109940.0,109930.0,0.32406432]
[1756814103119,0.003141,109940.0,109930.0,0.67992053]
[1756814103561,0.003141,109940.0,109930.0,0.32179015]
[1756814103770,0.003141,109940.0,109930.0,0.67992053]
[1756814105480,0.003141,109940.0,109930.0,0.68883136]
[1756814106408,0.003141,109940.0,109930.0,0.67992053]
[1756814106592,0.003141,109940.0,109930.0,0.83684053]
[1756814108403,0.003141,109940.0,109930.0,0.32062015]
[1756814108606,0.003141,109940.0,109930.0,0.83563053]
[1756814109419,0.003141,109940.0,109930.0,0.86285546]
[1756814110860,0.003141,109940.0,109930.0,0.50472508]
[1756814111320,0.003141,109940.0,109930.0,1.26285546]
[1756814112371,0.003141,109940.0,109930.0,1.60285546]
[1756814113226,0.002141,109940.0,109930.0,1.60285546]
[1756814113634,0.003141,109940.0,109930.0,1.60285546]
[1756814114044,0.002141,109940.0,109930.0,1.60285546]
[1756814114436,0.000141,109940.0,109930.0,1.60285546]
[1756814114751,0.001141,109940.0,109930.0,1.60585546]
[1756814115180,0.000141,109940.0,109930.0,1.60285546]
[1756814115586,0.002141,109940.0,109930.0,1.24772508]
[1756814115790,0.003141,109940.0,109930.0,1.60785546]
[1756814115992,0.003141,109940.0,109930.0,1.60761546]
[1756814118200,0.003141,109940.0,109930.0,1.45109546]
[1756814118409,0.003141,109940.0,109930.0,1.60753546]
[1756814119519,0.003141,109940.0,109930.0,1.45109546]
[1756814119728,0.003141,109940.0,109930.0,1.60745546]
[1756814121781,0.003141,109940.0,109930.0,1.65745546]
[1756814122200,0.003141,109940.0,109930.0,1.50109546]
[1756814122421,0.003141,109940.0,109930.0,1.65733546]
[1756814122839,0.003141,109940.0,109930.0,1.92063546]
[1756814124452,0.003141,109940.0,109930.0,1.76439546]
[1756814124653,0.003141,109940.0,109930.0,1.92051546]
[1756814125735,0.003141,109940.0,109930.0,1.76439546]
[1756814125948,0.003141,109940.0,109930.0,1.92047546]
[1756814126480,0.003141,109940.0,109930.0,1.92039546]
[1756814127282,0.003141,109940.0,109930.0,1.76439546]
[1756814127508,0.006341,109940.0,109930.0,1.56222508]
[1756814127708,0.36662138,109940.0,109930.0,0.59532626]
[1756814127926,0.36662138,109940.0,109930.0,0.56798133]
[1756814128132,0.36662138,109940.0,109930.0,0.72406133]
[1756814128441,0.36662138,109940.0,109930.0,0.56798133]
[1756814128678,0.36662138,109940.0,109930.0,0.72410133]
[1756814128838,0.36462138,109940.0,109930.0,0.72110133]
[1756814129036,0.006491,109940.0,109930.0,0.72110133]
[1756814129247,0.36562138,109940.0,109930.0,0.72210133]
[1756814129403,0.36562138,109940.0,109930.0,0.47974015]
[1756814129615,0.36562138,109940.0,109930.0,0.43304994]
[1756814129821,0.36462138,109940.0,109930.0,0.43104994]
[1756814130027,0.36562138,109940.0,109930.0,0.45398876]
[1756814130946,0.007491,109940.0,109930.0,0.45394876]
[1756814131423,0.007491,109940.0,109930.0,0.29778876]
[1756814131633,0.36562138,109940.0,109930.0,0.51173317]
[1756814131846,0.36562138,109940.0,109930.0,0.43304994]
[1756814132286,0.36562138,109940.0,109930.0,0.27684994]
[1756814132520,0.36562138,109940.0,109930.0,0.43304994]
[1756814132744,0.007491,109940.0,109930.0,0.43304994]
[1756814132982,0.007491,109940.0,109930.0,0.50158598]
[1756814133202,0.007491,109940.0,109930.0,0.5225248]
[1756814133614,0.36562138,109940.0,109930.0,0.3663248]
[1756814134188,0.36562138,109940.0,109930.0,0.5225648]
[1756814134393,0.36562138,109940.0,109930.0,0.29778876]
[1756814134605,0.36562138,109940.0,109930.0,0.45410876]
[1756814135297,0.54753878,109940.0,109930.0,0.43316994]
[1756814137923,0.36562138,109940.0,109930.0,0.43316994]
[1756814138351,0.36562138,109940.0,109930.0,0.50171797]
[1756814141016,0.007491,109940.0,109930.0,0.50171797]
[1756814141247,0.002141,109940.0,109930.0,0.52265679]
[1756814141952,0.007221,109940.0,109930.0,0.36633679]
[1756814142208,0.007221,109940.0,109930.0,0.52241679]
[1756814142667,0.54726878,109940.0,109930.0,0.43292994]
[1756814142895,0.54726878,109940.0,109930.0,0.003]
[1756814143149,0.54726878,109940.0,109930.0,0.15904]
[1756814143828,0.54726878,109940.0,109930.0,0.34097395]
[1756814145138,0.54726878,109940.0,109930.0,0.15904]
[1756814145375,0.54726878,109940.0,109930.0,0.20017504]
[1756814147146,0.54726878,109940.0,109930.0,0.04413504]
[1756814147367,0.54726878,109940.0,109930.0,0.003]
[1756814154471,0.1891384,109940.0,109930.0,0.003]
[1756814154690,0.54726878,109940.0,109930.0,0.003]
[1756814157572,0.1891384,109940.0,109930.0,0.003]
[1756814157778,0.54726878,109940.0,109930.0,0.003]
[1756814160361,0.1891384,109940.0,109930.0,0.003]
[1756814160562,0.54726878,109940.0,109930.0,0.003]
[1756814160762,0.1891384,109940.0,109930.0,0.003]
[1756814160955,0.54726878,109940.0,109930.0,0.003]
[1756814161551,0.90539102,109940.0,109930.0,0.003]
[1756814164553,0.90539102,109940.0,109930.0,0.18493395]
[1756814164554,0.54726471,109940.0,109930.0,0.18493395]
[1756814164775,0.90539102,109940.0,109930.0,0.23726227]
[1756814164958,0.90539102,109940.0,109930.0,0.05532832]
[1756814165530,0.1891384,109940.0,109930.0,0.05532832]
[1756814165736,0.90539102,109940.0,109930.0,0.05532832]
[1756814167322,0.54726471,109940.0,109930.0,0.23726227]
[1756814167515,0.90539102,109940.0,109930.0,0.23726227]
[1756814167740,0.54726471,109940.0,109930.0,0.23726227]
[1756814168183,0.1891384,109940.0,109930.0,0.23726227]
[1756814168401,0.90539102,109940.0,109930.0,0.23726227]
[1756814168806,0.90539102,109940.0,109930.0,0.39254227]
[1756814169898,0.1891384,109940.0,109930.0,0.39254227]
[1756814170106,0.90539102,109940.0,109930.0,0.39254227]
[1756814171694,0.007221,109940.0,109930.0,0.48445826]
[1756814171893,0.002141,109940.0,109930.0,0.50539708]
[1756814172165,0.002141,109940.0,109930.0,0.86352339]
[1756814173548,0.002141,109940.0,109930.0,0.50539708]
[1756814173768,0.002141,109940.0,109930.0,0.86352339]
[1756814175131,0.002141,109940.0,109930.0,0.89086722]
[1756814177106,0.002141,109940.0,109930.0,0.53274091]
[1756814180465,0.36026731,109940.0,109930.0,0.53274091]
[1756814180891,0.002141,109940.0,109930.0,0.53274091]
[1756814181129,0.36026731,109940.0,109930.0,0.53274091]
[1756814181303,0.1395376,109950.0,109940.0,0.20285622]
[1756814181432,0.1416776,109950.0,109940.0,0.36901273]
[1756814181641,0.32357846,109950.0,109940.0,0.52293273]
[1756814182625,0.1416776,109950.0,109940.0,0.52293273]
[1756814183136,0.18404086,109950.0,109940.0,0.07424052]
[1756814183348,0.90533348,109950.0,109940.0,0.18338821]
[1756814183554,1.06021348,109950.0,109940.0,0.00147081]
[1756814183776,0.70308717,109950.0,109940.0,0.00347081]
[1756814184401,1.06121348,109950.0,109940.0,0.00347081]
[1756814185048,1.06121348,109950.0,109940.0,0.18538821]
[1756814185259,1.06121348,109950.0,109940.0,0.06091986]
[1756814188077,1.08856168,109950.0,109940.0,0.06091986]
[1756814194199,1.08856168,109950.0,109940.0,0.00347081]
[1756814194596,1.42856168,109950.0,109940.0,0.00347081]
[1756814196928,1.44807311,109950.0,109940.0,0.00347081]
[1756814199503,1.5399891,109950.0,109940.0,0.00347081]
[1756814199893,1.5389891,109950.0,109940.0,0.00147081]
[1756814200082,1.5369891,109950.0,109940.0,0.00047081]
[1756814200256,1.5379891,109950.0,109940.0,0.00147081]
[1756814200660,1.5369891,109950.0,109940.0,0.00047081]
[1756814201062,1.5379891,109950.0,109940.0,0.00147081]
[1756814201279,1.6079491,109950.0,109940.0,0.00147081]
[1756814201480,1.63623314,109950.0,109940.0,0.00147081]
[1756814201681,1.64023314,109950.0,109940.0,0.00147081]
[1756814202231,2.00632981,109950.0,109940.0,0.00147081]
[1756814202378,2.04103263,109950.0,109940.0,0.00147081]
[1756814202585,2.09850986,109950.0,109940.0,0.00147081]
[1756814203899,2.12289692,109950.0,109940.0,0.00147081]
[1756814204980,2.11989692,109950.0,109940.0,0.00147081]
[1756814205404,1.04551799,109950.0,109940.0,0.00147081]
[1756814205608,2.12489692,109950.0,109940.0,0.00147081]
[1756814205815,2.12489692,109950.0,109940.0,1e-08]
[1756814205816,3.37167334,109950.0,109940.0,1e-08]
[1756814206016,3.44869212,109950.0,109940.0,1e-08]
[1756814206248,3.47704724,109950.0,109940.0,1e-08]
[1756814206461,3.42329406,109950.0,109940.0,1e-08]
[1756814206674,0.18193395,109930.0,109920.0,0.0004]
[1756814206879,1.16573399,109930.0,109920.0,0.0004]
[1756814207087,1.17104399,109930.0,109920.0,0.0004]
[1756814207293,0.48215114,109930.0,109920.0,0.0004]
[1756814207523,1.55653007,109930.0,109920.0,0.0004]
[1756814207729,1.19840376,109930.0,109920.0,0.0004]
[1756814207907,1.19940376,109930.0,109920.0,0.0004]
[1756814208363,1.55753007,109930.0,109920.0,0.0004]
[1756814208562,1.20240376,109930.0,109920.0,0.0004]
[1756814208676,0.48615114,109930.0,109920.0,0.0004]
[1756814208892,0.46783971,109930.0,109920.0,0.0004]
[1756814209106,1.22498238,109930.0,109920.0,0.0004]
[1756814210407,1.58310869,109930.0,109920.0,0.0004]
[1756814211718,1.22498238,109930.0,109920.0,0.0004]
[1756814212773,1.06766238,109930.0,109920.0,0.0004]
[1756814212985,1.22578238,109930.0,109920.0,0.0004]
[1756814213627,1.24524156,109930.0,109920.0,0.0004]
[1756814215029,1.24524676,109930.0,109920.0,0.0004]
[1756814215708,1.08712676,109930.0,109920.0,0.0004]
[1756814215924,1.24504676,109930.0,109920.0,0.0004]
[1756814218595,1.33696275,109930.0,109920.0,0.0004]
[1756814219605,1.33596275,109930.0,109920.0,0.0004]
[1756814219786,1.33296275,109930.0,109920.0,0.0004]
[1756814219992,1.33496275,109930.0,109920.0,0.0004]
[1756814220209,1.33996275,109930.0,109920.0,0.0004]
[1756814220419,1.33796275,109930.0,109920.0,0.0004]
[1756814220851,1.33996275,109930.0,109920.0,0.0004]
[1756814221507,1.34042125,109930.0,109920.0,0.0004]
[1756814222256,1.35733007,109930.0,109920.0,0.0004]
[1756814222515,1.36367092,109930.0,109920.0,0.0004]
[1756814222724,0.62371013,109930.0,109920.0,0.0004]
[1756814222903,1.35733026,109930.0,109920.0,0.0004]
[1756814223149,1.34042125,109930.0,109920.0,0.0004]
[1756814223363,1.36367107,109930.0,109920.0,0.0004]
[1756814223788,1.39196707,109930.0,109920.0,0.0004]
[1756814226067,1.36367107,109930.0,109920.0,0.0004]
[1756814226487,1.34042125,109930.0,109920.0,0.0004]
[1756814226704,1.36368887,109930.0,109920.0,0.0004]
[1756814227407,1.38803757,109930.0,109920.0,0.0004]
[1756814227853,0.67132645,109930.0,109920.0,0.0004]
[1756814228058,1.38803757,109930.0,109920.0,0.0004]
[1756814229550,1.38763757,109930.0,109920.0,0.0004]
[1756814230499,1.42012246,109930.0,109920.0,0.0004]
[1756814231417,1.42016246,109930.0,109920.0,0.0004]
[1756814232631,1.27037204,109930.0,109920.0,0.0004]
[1756814234734,1.61037204,109930.0,109920.0,0.0004]
[1756814234948,1.64265693,109930.0,109920.0,0.0004]
[1756814235308,1.67496257,109930.0,109920.0,0.0004]
[1756814236078,1.67499538,109930.0,109920.0,0.0004]
[1756814236289,1.76691137,109930.0,109920.0,0.0004]
[1756814236497,1.76691137,109930.0,109920.0,1e-08]
[1756814236922,2.12526693,109930.0,109920.0,1e-08]
[1756814237130,1.76691137,109930.0,109920.0,1e-08]
[1756814237344,1.76691882,109930.0,109920.0,1e-08]
[1756814237767,2.27527438,109930.0,109920.0,1e-08]
[1756814238020,6.93116367,109930.0,109920.0,1e-08]
[1756814238229,6.93116196,109930.0,109920.0,1e-08]
[1756814238692,7.28951752,109930.0,109920.0,1e-08]
[1756814238904,6.93116196,109930.0,109920.0,1e-08]
[1756814241380,6.93104196,109930.0,109920.0,1e-08]
[1756814242709,6.94729695,109930.0,109920.0,1e-08]
[1756814243650,1.23867818,109910.0,109900.0,0.010652]
[1756814243890,1.26663614,109910.0,109900.0,0.010652]
[1756814244348,1.74948158,109910.0,109900.0,0.010652]
[1756814244573,1.74945507,109910.0,109900.0,0.010652]
[1756814245089,1.74992698,109910.0,109900.0,0.010652]
[1756814245308,1.75192698,109910.0,109900.0,0.010652]
[1756814246009,1.75292698,109910.0,109900.0,0.010652]
[1756814246470,1.74992698,109910.0,109900.0,0.010652]
[1756814246694,1.8075781,109910.0,109900.0,0.010652]
[1756814246918,1.84308979,109910.0,109900.0,0.010652]
[1756814247153,1.81870603,109910.0,109900.0,0.010652]
[1756814247398,1.81570603,109910.0,109900.0,0.010652]
[1756814247616,1.86444591,109910.0,109900.0,0.010652]
[1756814248066,1.86744341,109910.0,109900.0,0.010652]
[1756814248593,1.88168972,109910.0,109900.0,0.010652]
[1756814249401,1.83294984,109910.0,109900.0,0.010652]
[1756814250391,1.82570984,109910.0,109900.0,0.010652]